[Event "Open"]
[Site "Tallinn, EE"]
[Date "2024.12.18"]
[Round "4.1"]
[White "Kanep, Meelis"]
[Black "Obolonin, Filipp"]
[Result "1-0"]
[Board "2"]
[TimeControl "40/5400+30"]
[WhiteFideId "4501047"]
[BlackFideId "4505549"]
[WhiteTitle "GM"]
[WhiteElo "2377"]
[BlackElo "2009"]
[WhiteTeam "EST"]
[BlackTeam "EST"]
[WhiteClock "0:17:47"]
[BlackClock "0:57:03"]
[Variant "Standard"]

1. d4 {[%clk 1:29:35]}  d5 {[%clk 1:30:55]} 2. c4 {[%clk 1:29:57]}  e6 {[%clk 1:31:22]} 3. Nc3 {[%clk 1:29:51]}  Nf6 {[%clk 1:31:45]} 4. Bg5 {[%clk 1:29:42]}  Be7 {[%clk 1:32:06]} 5. e3 {[%clk 1:29:54]}  c6 {[%clk 1:32:22]} 6. Nf3 {[%clk 1:29:43]}  Nbd7 {[%clk 1:32:45]} 7. Qc2 {[%clk 1:29:33]}  h6 {[%clk 1:33:04]} 8. Bf4 {[%clk 1:29:17]}  b6 {[%clk 1:31:17]} 9. cxd5 {[%clk 1:23:38]}  exd5 {[%clk 1:30:24]} 10. Bd3 {[%clk 1:21:47]}  Bb7 {[%clk 1:30:49]} 11. h3 {[%clk 1:17:19]}  O-O {[%clk 1:29:30]} 12. O-O {[%clk 1:14:16]}  Re8 {[%clk 1:20:52]} 13. Rad1 {[%clk 1:01:34]}  b5 {[%clk 1:17:10]} 14. Ne2 {[%clk 0:53:56]}  Qb6 {[%clk 1:14:59]} 15. Ne5 {[%clk 0:43:48]}  Nxe5 {[%clk 1:14:23]} 16. Bxe5 {[%clk 0:39:47]}  Nd7 {[%clk 1:14:22]} 17. Bg3 {[%clk 0:39:27]}  Rad8 {[%clk 1:12:36]} 18. Bf5 {[%clk 0:37:55]}  Nf8 {[%clk 1:12:47]} 19. Nc1 {[%clk 0:37:09]}  a5 {[%clk 1:11:54]} 20. Nd3 {[%clk 0:34:12]}  g6 {[%clk 1:09:19]} 21. Bg4 {[%clk 0:34:30]}  Kg7 {[%clk 1:07:18]} 22. Rc1 {[%clk 0:33:53]}  h5 {[%clk 1:07:37]} 23. Be2 {[%clk 0:33:58]}  Ne6 {[%clk 1:07:51]} 24. Rfd1 {[%clk 0:31:56]}  Rc8 {[%clk 1:08:15]} 25. Ne5 {[%clk 0:20:27]}  c5 {[%clk 1:01:32]} 26. Nd7 {[%clk 0:20:14]}  Qa7 {[%clk 1:01:11]} 27. dxc5 {[%clk 0:19:04]}  Nxc5 {[%clk 1:01:13]} 28. Be5+ {[%clk 0:18:13]}  f6 {[%clk 0:57:28]} 29. Bd4 {[%clk 0:18:12]}  Rc7 {[%clk 0:55:08]} 30. Nxc5 {[%clk 0:16:45]}  Bxc5 {[%clk 0:55:30]} 31. Bxc5 {[%clk 0:16:59]}  Rec8 {[%clk 0:55:49]} 32. Bxa7 {[%clk 0:16:58]}  Rxc2 {[%clk 0:56:14]} 33. Rxc2 {[%clk 0:17:15]}  Rxc2 {[%clk 0:56:40]} 34. Bxb5 {[%clk 0:17:27]}  Rxb2 {[%clk 0:57:03]} 35. a4 {[%clk 0:17:47]} 1-0

[Event "Open"]
[Site "Tallinn, EE"]
[Date "2024.12.19"]
[Round "4.2"]
[White "Obolonin, Filipp"]
[Black "Kanep, Meelis"]
[Result "1/2-1/2"]
[Board "2"]
[TimeControl "40/5400+30"]
[WhiteFideId "4505549"]
[BlackFideId "4501047"]
[BlackTitle "GM"]
[WhiteElo "2009"]
[BlackElo "2377"]
[WhiteTeam "EST"]
[BlackTeam "EST"]
[WhiteClock "1:17:31"]
[BlackClock "0:08:01"]
[Variant "Standard"]

1. d4 {[%clk 1:30:57]}  d5 {[%clk 1:30:49]} 2. Nf3 {[%clk 1:31:21]}  Nf6 {[%clk 1:31:00]} 3. g3 {[%clk 1:31:47]}  Bf5 {[%clk 1:31:01]} 4. Bg2 {[%clk 1:32:12]}  e6 {[%clk 1:31:11]} 5. O-O {[%clk 1:32:34]}  Be7 {[%clk 1:31:04]} 6. c4 {[%clk 1:32:26]}  c6 {[%clk 1:30:54]} 7. Nc3 {[%clk 1:32:51]}  h6 {[%clk 1:30:10]} 8. Nd2 {[%clk 1:32:56]}  O-O {[%clk 1:25:29]} 9. e4 {[%clk 1:32:42]}  dxe4 {[%clk 1:25:50]} 10. Ndxe4 {[%clk 1:33:06]}  Nxe4 {[%clk 1:25:28]} 11. Nxe4 {[%clk 1:33:31]}  Nd7 {[%clk 1:25:29]} 12. Nc3 {[%clk 1:32:18]}  Nf6 {[%clk 1:18:57]} 13. h3 {[%clk 1:32:36]}  Qb6 {[%clk 1:14:43]} 14. Na4 {[%clk 1:27:10]}  Qa6 {[%clk 1:06:37]} 15. Qb3 {[%clk 1:26:46]}  Rac8 {[%clk 0:59:25]} 16. Be3 {[%clk 1:24:34]}  Be4 {[%clk 0:58:03]} 17. f3 {[%clk 1:24:51]}  Bg6 {[%clk 0:57:28]} 18. Nc5 {[%clk 1:24:09]}  Bxc5 {[%clk 0:57:10]} 19. dxc5 {[%clk 1:24:34]}  Nd7 {[%clk 0:37:35]} 20. Rfd1 {[%clk 1:22:16]}  Rc7 {[%clk 0:34:17]} 21. Rd6 {[%clk 1:21:50]}  Qa5 {[%clk 0:33:17]} 22. Qd1 {[%clk 1:20:23]}  Nxc5 {[%clk 0:28:51]} 23. a3 {[%clk 1:20:29]}  Na6 {[%clk 0:24:22]} 24. Bxa7 {[%clk 1:20:31]}  Nc5 {[%clk 0:23:39]} 25. Bxc5 {[%clk 1:20:37]}  Qxc5+ {[%clk 0:24:00]} 26. Qd4 {[%clk 1:21:01]}  Qxd4+ {[%clk 0:23:47]} 27. Rxd4 {[%clk 1:21:27]}  e5 {[%clk 0:22:01]} 28. Rd6 {[%clk 1:21:51]}  Bf5 {[%clk 0:19:44]} 29. Rad1 {[%clk 1:21:18]}  Re8 {[%clk 0:19:32]} 30. Kf2 {[%clk 1:21:09]}  Kf8 {[%clk 0:18:22]} 31. Ke3 {[%clk 1:20:35]}  Be6 {[%clk 0:18:23]} 32. c5 {[%clk 1:19:47]}  Bd5 {[%clk 0:18:08]} 33. Bf1 {[%clk 1:19:41]}  Ra8 {[%clk 0:17:46]} 34. Rd3 {[%clk 1:17:19]}  Ke7 {[%clk 0:16:36]} 35. f4 {[%clk 1:14:25]}  exf4+ {[%clk 0:14:55]} 36. Kxf4 {[%clk 1:14:04]}  Kf8 {[%clk 0:14:09]} 37. Ke3 {[%clk 1:12:54]}  Re7+ {[%clk 0:10:46]} 38. Kd2 {[%clk 1:12:20]}  Rae8 {[%clk 0:10:55]} 39. R6xd5 {[%clk 1:10:56]}  cxd5 {[%clk 0:11:16]} 40. Rxd5 {[%clk 1:26:22]}  Re5 {[%clk 0:23:25]} 41. Rxe5 {[%clk 1:24:41]}  Rxe5 {[%clk 0:20:31]} 42. b4 {[%clk 1:25:06]}  Ke8 {[%clk 0:19:43]} 43. Bg2 {[%clk 1:25:26]}  Re7 {[%clk 0:20:02]} 44. a4 {[%clk 1:24:52]}  Kd8 {[%clk 0:19:57]} 45. Kd3 {[%clk 1:24:04]}  Kc7 {[%clk 0:16:49]} 46. a5 {[%clk 1:21:42]}  Re1 {[%clk 0:10:16]} 47. b5 {[%clk 1:20:12]}  Ra1 {[%clk 0:08:51]} 48. a6 {[%clk 1:20:21]}  b6 {[%clk 0:08:45]} 49. Kd4 {[%clk 1:16:08]}  Rd1+ {[%clk 0:08:07]} 50. Ke5 {[%clk 1:16:29]}  Ra1 {[%clk 0:08:06]} 51. Kd4 {[%clk 1:16:07]}  Rd1+ {[%clk 0:08:29]} 52. Ke5 {[%clk 1:16:32]}  Ra1 {[%clk 0:08:51]} 53. Kd4 {[%clk 1:15:46]}  bxc5+ {[%clk 0:08:14]} 54. Kxc5 {[%clk 1:16:08]}  Rc1+ {[%clk 0:08:36]} 55. Kd4 {[%clk 1:16:34]}  Kb6 {[%clk 0:08:56]} 56. Ke3 {[%clk 1:16:59]}  Ra1 {[%clk 0:08:14]} 57. Bc6 {[%clk 1:17:22]}  Ra4 {[%clk 0:07:39]} 58. Kf3 {[%clk 1:17:05]}  Rb4 {[%clk 0:07:00]} 59. h4 {[%clk 1:16:29]}  g5 {[%clk 0:05:50]} 60. hxg5 {[%clk 1:16:11]}  hxg5 {[%clk 0:06:18]} 61. g4 {[%clk 1:16:11]}  f6 {[%clk 0:06:19]} 62. Kg3 {[%clk 1:15:59]}  Rb3+ {[%clk 0:06:34]} 63. Kf2 {[%clk 1:16:20]}  Ra3 {[%clk 0:06:38]} 64. Kg2 {[%clk 1:16:16]}  Rb3 {[%clk 0:06:47]} 65. Kf2 {[%clk 1:16:40]}  Ra3 {[%clk 0:07:13]} 66. Kg2 {[%clk 1:17:06]}  Rb3 {[%clk 0:07:38]} 67. Kf2 {[%clk 1:17:31]}  Ra3 {[%clk 0:08:01]} 1/2-1/2

[Event "Open"]
[Site "Tallinn, EE"]
[Date "2024.12.19"]
[Round "4.3"]
[White "Volodin, Aleksandr"]
[Black "Narva, Mai"]
[Result "1-0"]
[Board "1"]
[TimeControl "900+3"]
[WhiteFideId "4501950"]
[BlackFideId "4500512"]
[WhiteTitle "GM"]
[BlackTitle "IM"]
[WhiteElo "2410"]
[BlackElo "2384"]
[WhiteTeam "EST"]
[BlackTeam "EST"]
[WhiteClock "0:01:01"]
[BlackClock "0:15:03"]
[Variant "Standard"]

1. d4 {[%clk 0:15:02]}  Nf6 {[%clk 0:15:04]} 2. c4 {[%clk 0:15:03]}  g6 {[%clk 0:15:04]} 3. Nc3 {[%clk 0:15:02]}  Bg7 {[%clk 0:15:02]} 4. Nf3 {[%clk 0:14:52]}  O-O {[%clk 0:15:00]} 5. g3 {[%clk 0:14:39]}  d5 {[%clk 0:14:53]} 6. Qb3 {[%clk 0:13:30]}  c6 {[%clk 0:13:53]} 7. Bg2 {[%clk 0:13:30]}  Qb6 {[%clk 0:13:50]} 8. O-O {[%clk 0:13:17]}  Bf5 {[%clk 0:13:45]} 9. c5 {[%clk 0:13:13]}  Qxb3 {[%clk 0:12:41]} 10. axb3 {[%clk 0:13:15]}  Nbd7 {[%clk 0:11:49]} 11. b4 {[%clk 0:13:17]}  Ne4 {[%clk 0:10:47]} 12. h3 {[%clk 0:11:42]}  e5 {[%clk 0:10:28]} 13. g4 {[%clk 0:11:19]}  Nxc3 {[%clk 0:08:39]} 14. bxc3 {[%clk 0:11:21]}  Be4 {[%clk 0:08:22]} 15. Be3 {[%clk 0:10:14]}  f5 {[%clk 0:06:06]} 16. gxf5 {[%clk 0:09:27]}  Rxf5 {[%clk 0:05:15]} 17. dxe5 {[%clk 0:09:15]}  Bxf3 {[%clk 0:03:51]} 18. Bxf3 {[%clk 0:09:16]}  Nxe5 {[%clk 0:03:52]} 19. Bg2 {[%clk 0:08:34]}  Nc4 {[%clk 0:03:29]} 20. Bd4 {[%clk 0:08:34]}  a6 {[%clk 0:02:32]} 21. Ra2 {[%clk 0:05:52]}  Raf8 {[%clk 0:02:31]} 22. e3 {[%clk 0:04:26]}  g5 {[%clk 0:02:29]} 23. Rd1 {[%clk 0:04:01]}  h5 {[%clk 0:00:58]} 24. e4 {[%clk 0:02:58]}  dxe4 {[%clk 0:00:45]} 25. Bxe4 {[%clk 0:03:00]}  Rf4 {[%clk 0:00:35]} 26. Re2 {[%clk 0:03:02]}  Ne5 {[%clk 0:00:20]} 27. Bxe5 {[%clk 0:02:44]}  Bxe5 {[%clk 0:00:22]} 28. Bd5+ {[%clk 0:02:46]}  cxd5 {[%clk 0:00:22]} 29. Rxe5 {[%clk 0:02:48]}  g4 {[%clk 0:00:16]} 30. Rg5+ {[%clk 0:02:40]}  Kf7 {[%clk 0:00:08]} 31. Rdxd5 {[%clk 0:02:33]}  Ke6 {[%clk 0:00:07]} 32. Rge5+ {[%clk 0:02:34]}  Kf6 {[%clk 0:00:09]} 33. Rxh5 {[%clk 0:02:34]}  gxh3 {[%clk 0:00:11]} 34. Rxh3 {[%clk 0:02:32]}  Re8 {[%clk 0:00:09]} 35. Kg2 {[%clk 0:01:40]}  Rc4 {[%clk 0:00:06]} 36. Rd6+ {[%clk 0:01:29]}  Kg5 {[%clk 0:00:06]} 37. Rd7 {[%clk 0:01:27]}  a5 {[%clk 0:00:05]} 38. Rg3+ {[%clk 0:01:24]}  Kf5 {[%clk 0:00:05]} 39. Rf7+ {[%clk 0:01:23]}  Ke6 {[%clk 0:00:05]} 40. Rxb7 {[%clk 0:01:25]}  Rf8 {[%clk 0:00:05]} 41. Rb6+ {[%clk 0:01:18]}  Kd5 {[%clk 0:00:05]} 42. Rd6+ {[%clk 0:01:20]}  Ke5 {[%clk 0:00:06]} 43. Re3+ {[%clk 0:01:22]}  Re4 {[%clk 0:00:06]} 44. Rxe4+ {[%clk 0:01:12]}  Kxe4 {[%clk 0:00:08]} 45. Ra6 {[%clk 0:01:01]}  Kd5 {[%clk 0:15:03]} 1-0

[Event "Open"]
[Site "Tallinn, EE"]
[Date "2024.12.19"]
[Round "4.4"]
[White "Narva, Mai"]
[Black "Volodin, Aleksandr"]
[Result "0-1"]
[Board "1"]
[TimeControl "900+3"]
[WhiteFideId "4500512"]
[BlackFideId "4501950"]
[WhiteTitle "IM"]
[BlackTitle "GM"]
[WhiteElo "2384"]
[BlackElo "2410"]
[WhiteTeam "EST"]
[BlackTeam "EST"]
[WhiteClock "0:10:36"]
[BlackClock "0:12:49"]
[Variant "Standard"]

1. e4 {[%clk 0:15:04]}  c5 {[%clk 0:15:05]} 2. Nf3 {[%clk 0:15:05]}  d6 {[%clk 0:15:06]} 3. d4 {[%clk 0:15:07]}  cxd4 {[%clk 0:15:07]} 4. Nxd4 {[%clk 0:15:08]}  Nf6 {[%clk 0:15:08]} 5. Nc3 {[%clk 0:15:09]}  a6 {[%clk 0:15:10]} 6. h4 {[%clk 0:15:10]}  e5 {[%clk 0:14:55]} 7. Nb3 {[%clk 0:15:11]}  Be6 {[%clk 0:13:57]} 8. f4 {[%clk 0:15:11]}  g6 {[%clk 0:13:57]} 9. Be2 {[%clk 0:15:10]}  Be7 {[%clk 0:12:44]} 10. g4 {[%clk 0:15:09]}  exf4 {[%clk 0:12:45]} 11. g5 {[%clk 0:14:41]}  f3 {[%clk 0:12:47]} 12. Bxf3 {[%clk 0:14:30]}  Nfd7 {[%clk 0:12:49]} 13. Bf4 {[%clk 0:14:01]}  Nc6 {[%clk 0:12:49]} 14. Bxd6 {[%clk 0:12:52]}  Nde5 {[%clk 0:12:51]} 15. Bxe7 {[%clk 0:12:47]}  Qxe7 {[%clk 0:12:52]} 16. Qe2 {[%clk 0:10:36]}  Bxb3 {[%clk 0:12:49]} 0-1

[Event "Women"]
[Site "Tallinn, EE"]
[Date "2024.12.14"]
[Round "1.1"]
[White "Saag, Enith Li"]
[Black "Olde, Margareth"]
[Result "0-1"]
[Board "1"]
[TimeControl "40/5400+30"]
[WhiteFideId "4501373"]
[BlackFideId "4503082"]
[BlackTitle "WIM"]
[WhiteElo "1805"]
[BlackElo "2147"]
[WhiteTeam "EST"]
[BlackTeam "EST"]
[WhiteClock "0:12:02"]
[BlackClock "0:01:22"]
[Variant "Standard"]

1. e4 {[%clk 1:30:49]}  c5 {[%clk 1:30:51]} 2. Bc4 {[%clk 1:31:01]}  e6 {[%clk 1:30:31]} 3. Nc3 {[%clk 1:31:14]}  a6 {[%clk 1:28:01]} 4. a4 {[%clk 1:30:55]}  Ne7 {[%clk 1:16:22]} 5. d3 {[%clk 1:25:27]}  d5 {[%clk 1:13:30]} 6. exd5 {[%clk 1:25:42]}  exd5 {[%clk 1:09:12]} 7. Bb3 {[%clk 1:25:41]}  Be6 {[%clk 1:09:19]} 8. Qe2 {[%clk 1:20:26]}  Nbc6 {[%clk 1:06:59]} 9. Nf3 {[%clk 1:19:09]}  h6 {[%clk 1:06:14]} 10. O-O {[%clk 1:16:16]}  g6 {[%clk 1:03:54]} 11. h3 {[%clk 1:12:09]}  Bg7 {[%clk 1:02:02]} 12. Rd1 {[%clk 1:00:07]}  O-O {[%clk 1:00:39]} 13. Bf4 {[%clk 0:51:34]}  Nf5 {[%clk 0:58:23]} 14. Qd2 {[%clk 0:29:55]}  g5 {[%clk 0:53:09]} 15. Bh2 {[%clk 0:24:17]}  Nfd4 {[%clk 0:50:35]} 16. Nxd4 {[%clk 0:23:47]}  Nxd4 {[%clk 0:50:54]} 17. Ba2 {[%clk 0:22:21]}  b5 {[%clk 0:49:05]} 18. Rab1 {[%clk 0:15:50]}  Qd7 {[%clk 0:44:15]} 19. a5 {[%clk 0:11:56]}  Qd8 {[%clk 0:33:40]} 20. f4 {[%clk 0:08:12]}  b4 {[%clk 0:28:22]} 21. Ne2 {[%clk 0:08:05]}  Bxh3 {[%clk 0:25:51]} 22. Nxd4 {[%clk 0:07:17]}  Bxd4+ {[%clk 0:26:14]} 23. Kh1 {[%clk 0:07:23]}  Be6 {[%clk 0:23:55]} 24. c3 {[%clk 0:07:41]}  bxc3 {[%clk 0:23:25]} 25. bxc3 {[%clk 0:07:54]}  Bg7 {[%clk 0:23:25]} 26. Rb6 {[%clk 0:08:08]}  g4 {[%clk 0:20:30]} 27. Qf2 {[%clk 0:05:44]}  Qd7 {[%clk 0:12:13]} 28. Rf1 {[%clk 0:04:54]}  Bf5 {[%clk 0:11:13]} 29. Qxc5 {[%clk 0:04:16]}  Rfd8 {[%clk 0:02:31]} 30. d4 {[%clk 0:03:59]}  Bd3 {[%clk 0:02:45]} 31. Rf2 {[%clk 0:03:08]}  Rac8 {[%clk 0:02:04]} 32. Qb4 {[%clk 0:03:02]}  Qf5 {[%clk 0:01:05]} 33. Qb2 {[%clk 0:01:00]}  Re8 {[%clk 0:00:56]} 34. Qd2 {[%clk 0:00:38]}  Bb5 {[%clk 0:00:57]} 35. Bg3 {[%clk 0:00:39]}  Re7 {[%clk 0:00:45]} 36. Bh4 {[%clk 0:00:47]}  Rec7 {[%clk 0:00:49]} 37. Rd6 {[%clk 0:00:54]}  Rd7 {[%clk 0:00:36]} 38. Rxd7 {[%clk 0:01:18]}  Bxd7 {[%clk 0:00:46]} 39. Re2 {[%clk 0:01:39]}  Be6 {[%clk 0:00:33]} 40. Re1 {[%clk 0:16:30]}  Rb8 {[%clk 0:15:33]} 41. Qc1 {[%clk 0:16:47]}  Qh5 {[%clk 0:12:47]} 42. g3 {[%clk 0:17:06]}  Bf6 {[%clk 0:12:36]} 43. Kg2 {[%clk 0:17:16]}  Bxh4 {[%clk 0:10:56]} 44. gxh4 {[%clk 0:17:36]}  Qxh4 {[%clk 0:08:01]} 45. Rh1 {[%clk 0:17:58]}  Qf6 {[%clk 0:08:23]} 46. Rh5 {[%clk 0:17:34]}  Qg6 {[%clk 0:07:27]} 47. Re5 {[%clk 0:17:17]}  Qd3 {[%clk 0:05:06]} 48. Re3 {[%clk 0:16:43]}  Qb5 {[%clk 0:05:01]} 49. Kg3 {[%clk 0:12:19]}  Kg7 {[%clk 0:02:41]} 50. Re5 {[%clk 0:11:52]}  Qxa5 {[%clk 0:02:01]} 51. Bb1 {[%clk 0:11:15]}  Rxb1 {[%clk 0:01:18]} 52. Qxb1 {[%clk 0:11:12]}  Qxc3+ {[%clk 0:01:46]} 53. Kg2 {[%clk 0:11:09]}  Qf3+ {[%clk 0:01:47]} 54. Kg1 {[%clk 0:11:28]}  Qg3+ {[%clk 0:01:11]} 55. Kf1 {[%clk 0:11:48]}  Qxf4+ {[%clk 0:01:35]} 56. Ke1 {[%clk 0:12:02]}  Qxd4 {[%clk 0:01:22]} 0-1

[Event "Women"]
[Site "Tallinn, EE"]
[Date "2024.12.15"]
[Round "1.2"]
[White "Olde, Margareth"]
[Black "Saag, Enith Li"]
[Result "1-0"]
[Board "1"]
[TimeControl "40/5400+30"]
[WhiteFideId "4503082"]
[BlackFideId "4501373"]
[WhiteTitle "WIM"]
[WhiteElo "2147"]
[BlackElo "1805"]
[WhiteTeam "EST"]
[BlackTeam "EST"]
[WhiteClock "0:16:38"]
[BlackClock "0:16:13"]
[Variant "Standard"]

1. e4 {[%clk 1:30:56]}  e5 {[%clk 1:29:12]} 2. Nf3 {[%clk 1:31:17]}  Nc6 {[%clk 1:29:23]} 3. Bc4 {[%clk 1:31:32]}  Bc5 {[%clk 1:29:33]} 4. d3 {[%clk 1:31:39]}  h6 {[%clk 1:29:33]} 5. Nc3 {[%clk 1:31:15]}  d6 {[%clk 1:29:44]} 6. h3 {[%clk 1:30:29]}  Nge7 {[%clk 1:29:36]} 7. Na4 {[%clk 1:25:50]}  Bb6 {[%clk 1:29:40]} 8. a3 {[%clk 1:22:58]}  O-O {[%clk 1:28:40]} 9. O-O {[%clk 1:21:43]}  Kh7 {[%clk 1:27:25]} 10. Nxb6 {[%clk 1:19:09]}  axb6 {[%clk 1:27:29]} 11. d4 {[%clk 1:16:51]}  Ng6 {[%clk 1:24:53]} 12. dxe5 {[%clk 1:11:42]}  Ncxe5 {[%clk 1:24:53]} 13. Nxe5 {[%clk 1:10:51]}  Nxe5 {[%clk 1:25:12]} 14. Bd5 {[%clk 1:07:01]}  f5 {[%clk 1:23:29]} 15. exf5 {[%clk 1:03:24]}  c6 {[%clk 1:18:31]} 16. Be6 {[%clk 1:01:31]}  Bxe6 {[%clk 1:16:50]} 17. fxe6 {[%clk 1:01:51]}  Qe7 {[%clk 1:15:56]} 18. f4 {[%clk 0:59:30]}  Ng6 {[%clk 1:13:24]} 19. Qd3 {[%clk 0:56:24]}  Rf6 {[%clk 1:11:09]} 20. Bd2 {[%clk 0:51:45]}  Raf8 {[%clk 1:09:50]} 21. Rae1 {[%clk 0:46:41]}  Kh8 {[%clk 1:02:45]} 22. Bc3 {[%clk 0:43:59]}  Rf5 {[%clk 1:01:32]} 23. g3 {[%clk 0:39:12]}  d5 {[%clk 0:30:34]} 24. Bd2 {[%clk 0:34:53]}  Qd6 {[%clk 0:20:14]} 25. b4 {[%clk 0:24:45]}  c5 {[%clk 0:19:42]} 26. Qe2 {[%clk 0:22:21]}  R5f6 {[%clk 0:14:54]} 27. Rf3 {[%clk 0:18:08]}  d4 {[%clk 0:11:26]} 28. Qe4 {[%clk 0:16:51]}  c4 {[%clk 0:08:38]} 29. Bc1 {[%clk 0:13:21]}  b5 {[%clk 0:07:44]} 30. Bb2 {[%clk 0:09:58]}  Re8 {[%clk 0:04:56]} 31. f5 {[%clk 0:05:48]}  c3 {[%clk 0:04:38]} 32. Bc1 {[%clk 0:05:06]}  Ne7 {[%clk 0:03:17]} 33. g4 {[%clk 0:03:05]}  b6 {[%clk 0:03:00]} 34. Rd3 {[%clk 0:01:25]}  Nc6 {[%clk 0:03:05]} 35. Bf4 {[%clk 0:01:22]}  Qd8 {[%clk 0:00:55]} 36. Qxc6 {[%clk 0:01:39]}  Re7 {[%clk 0:00:46]} 37. Bd6 {[%clk 0:01:34]}  Ra7 {[%clk 0:00:47]} 38. e7 {[%clk 0:00:58]}  Rxe7 {[%clk 0:00:58]} 39. Bxe7 {[%clk 0:00:54]}  Qxe7 {[%clk 0:00:53]} 40. Rxe7 {[%clk 0:16:16]}  Rxc6 {[%clk 0:16:13]} 41. Rxd4 {[%clk 0:16:38]} 1-0

[Event "Women"]
[Site "Tallinn, EE"]
[Date "2024.12.14"]
[Round "1.1"]
[White "Tsiganova, Monika"]
[Black "Levchenko, Marina"]
[Result "1-0"]
[Board "2"]
[TimeControl "40/5400+30"]
[WhiteFideId "4500199"]
[BlackFideId "4508548"]
[WhiteTitle "WIM"]
[WhiteElo "2077"]
[BlackElo "1862"]
[WhiteTeam "EST"]
[BlackTeam "EST"]
[WhiteClock "0:38:11"]
[BlackClock "0:16:57"]
[Variant "Standard"]

1. d4 {[%clk 1:30:35]}  d5 {[%clk 1:30:49]} 2. c4 {[%clk 1:30:53]}  e6 {[%clk 1:31:00]} 3. Nc3 {[%clk 1:31:05]}  Be7 {[%clk 1:30:31]} 4. Nf3 {[%clk 1:31:00]}  Nf6 {[%clk 1:30:44]} 5. e3 {[%clk 1:29:33]}  O-O {[%clk 1:29:41]} 6. Bd3 {[%clk 1:27:12]}  c5 {[%clk 1:28:09]} 7. O-O {[%clk 0:59:06]}  b6 {[%clk 1:26:51]} 8. cxd5 {[%clk 1:26:11]}  exd5 {[%clk 1:25:46]} 9. Ne5 {[%clk 1:25:15]}  Bb7 {[%clk 1:18:39]} 10. Qf3 {[%clk 1:12:35]}  Nc6 {[%clk 1:13:56]} 11. Qh3 {[%clk 1:05:53]}  a6 {[%clk 0:49:54]} 12. Nd7 {[%clk 1:00:58]}  g6 {[%clk 0:42:17]} 13. Nxf8 {[%clk 1:00:58]}  Bxf8 {[%clk 0:42:17]} 14. dxc5 {[%clk 0:59:06]}  bxc5 {[%clk 0:41:06]} 15. Rd1 {[%clk 0:57:59]}  Qc7 {[%clk 0:37:23]} 16. b3 {[%clk 0:47:34]}  Rd8 {[%clk 0:31:13]} 17. Bb2 {[%clk 0:47:23]}  Bg7 {[%clk 0:29:59]} 18. Rac1 {[%clk 0:46:22]}  Ne5 {[%clk 0:22:51]} 19. Be2 {[%clk 0:44:26]}  Ned7 {[%clk 0:19:53]} 20. Na4 {[%clk 0:43:34]}  Ne4 {[%clk 0:15:30]} 21. Bxg7 {[%clk 0:42:35]}  Kxg7 {[%clk 0:15:53]} 22. f3 {[%clk 0:36:15]}  Ng5 {[%clk 0:13:59]} 23. Qg3 {[%clk 0:36:14]}  Qxg3 {[%clk 0:14:00]} 24. hxg3 {[%clk 0:36:38]}  Ne6 {[%clk 0:14:06]} 25. Rd2 {[%clk 0:32:17]}  f5 {[%clk 0:09:51]} 26. Rcd1 {[%clk 0:30:02]}  Nf6 {[%clk 0:08:44]} 27. Nc3 {[%clk 0:27:07]}  Kf7 {[%clk 0:06:15]} 28. Bc4 {[%clk 0:25:54]}  dxc4 {[%clk 0:03:55]} 29. Rxd8 {[%clk 0:26:08]}  Nxd8 {[%clk 0:04:18]} 30. Rxd8 {[%clk 0:26:32]}  cxb3 {[%clk 0:03:49]} 31. axb3 {[%clk 0:26:53]}  Ke7 {[%clk 0:02:54]} 32. Rb8 {[%clk 0:26:55]}  Bc6 {[%clk 0:02:49]} 33. Rb6 {[%clk 0:27:11]}  Bb5 {[%clk 0:02:22]} 34. Nxb5 {[%clk 0:26:53]}  axb5 {[%clk 0:02:42]} 35. Rxb5 {[%clk 0:27:15]}  Nd7 {[%clk 0:02:43]} 36. Kf2 {[%clk 0:25:13]}  Kd6 {[%clk 0:02:53]} 37. Ke2 {[%clk 0:24:46]}  Kc6 {[%clk 0:02:48]} 38. Ra5 {[%clk 0:25:03]}  Kb6 {[%clk 0:02:48]} 39. Ra8 {[%clk 0:24:57]}  Kb5 {[%clk 0:02:46]} 40. Ra7 {[%clk 0:39:13]}  Kc6 {[%clk 0:17:54]} 41. f4 {[%clk 0:39:20]}  h6 {[%clk 0:17:17]} 42. Kf3 {[%clk 0:39:30]}  g5 {[%clk 0:16:11]} 43. e4 {[%clk 0:39:34]}  g4+ {[%clk 0:15:40]} 44. Ke3 {[%clk 0:39:54]}  fxe4 {[%clk 0:16:01]} 45. Kxe4 {[%clk 0:40:07]}  Nf6+ {[%clk 0:16:16]} 46. Kf5 {[%clk 0:39:39]}  Nd5 {[%clk 0:16:39]} 47. Kxg4 {[%clk 0:38:43]}  Kb6 {[%clk 0:16:56]} 48. Ra8 {[%clk 0:38:28]}  Kb7 {[%clk 0:16:58]} 49. Rd8 {[%clk 0:38:12]}  Nf6+ {[%clk 0:16:57]} 50. Kf5 {[%clk 0:38:11]} 1-0

[Event "Women"]
[Site "Tallinn, EE"]
[Date "2024.12.15"]
[Round "1.2"]
[White "Levchenko, Marina"]
[Black "Tsiganova, Monika"]
[Result "1/2-1/2"]
[Board "2"]
[TimeControl "40/5400+30"]
[WhiteFideId "4508548"]
[BlackFideId "4500199"]
[BlackTitle "WIM"]
[WhiteElo "1862"]
[BlackElo "2077"]
[WhiteTeam "EST"]
[BlackTeam "EST"]
[WhiteClock "0:15:32"]
[BlackClock "0:17:14"]
[Variant "Standard"]

1. d4 {[%clk 1:30:58]}  Nf6 {[%clk 1:30:19]} 2. c4 {[%clk 1:31:17]}  e6 {[%clk 1:30:29]} 3. Nc3 {[%clk 1:31:24]}  Bb4 {[%clk 1:30:42]} 4. Qc2 {[%clk 1:31:26]}  O-O {[%clk 1:26:01]} 5. Nf3 {[%clk 1:30:00]}  b6 {[%clk 1:20:20]} 6. e4 {[%clk 1:24:07]}  d5 {[%clk 1:06:08]} 7. cxd5 {[%clk 1:12:17]}  exd5 {[%clk 1:06:18]} 8. e5 {[%clk 1:11:54]}  Ne4 {[%clk 1:01:54]} 9. Bd3 {[%clk 1:10:32]}  Bb7 {[%clk 0:52:41]} 10. O-O {[%clk 1:08:44]}  Bxc3 {[%clk 0:51:21]} 11. bxc3 {[%clk 1:09:00]}  c5 {[%clk 0:46:04]} 12. Nd2 {[%clk 0:56:30]}  f5 {[%clk 0:35:32]} 13. f3 {[%clk 0:49:14]}  Nxd2 {[%clk 0:32:31]} 14. Bxd2 {[%clk 0:49:33]}  Ba6 {[%clk 0:29:36]} 15. Rfe1 {[%clk 0:43:17]}  Bxd3 {[%clk 0:28:02]} 16. Qxd3 {[%clk 0:43:41]}  c4 {[%clk 0:28:04]} 17. Qe2 {[%clk 0:42:03]}  Nc6 {[%clk 0:27:48]} 18. Rab1 {[%clk 0:40:17]}  Qe7 {[%clk 0:27:31]} 19. Rb5 {[%clk 0:33:42]}  Qe6 {[%clk 0:27:15]} 20. Reb1 {[%clk 0:32:41]}  Rab8 {[%clk 0:26:24]} 21. Be3 {[%clk 0:24:05]}  f4 {[%clk 0:23:53]} 22. Bf2 {[%clk 0:23:38]}  h6 {[%clk 0:23:36]} 23. Qb2 {[%clk 0:22:05]}  Rfd8 {[%clk 0:22:11]} 24. h4 {[%clk 0:19:31]}  Ne7 {[%clk 0:20:24]} 25. Qd2 {[%clk 0:14:35]}  Qf5 {[%clk 0:19:29]} 26. R5b2 {[%clk 0:13:53]}  Rbc8 {[%clk 0:19:39]} 27. Re1 {[%clk 0:12:33]}  Rc6 {[%clk 0:19:49]} 28. Qc2 {[%clk 0:10:45]}  Qh5 {[%clk 0:16:58]} 29. e6 {[%clk 0:06:06]}  Qf5 {[%clk 0:14:22]} 30. Qxf5 {[%clk 0:05:29]}  Nxf5 {[%clk 0:14:45]} 31. Re5 {[%clk 0:05:30]}  Ne7 {[%clk 0:13:37]} 32. h5 {[%clk 0:04:58]}  Rdd6 {[%clk 0:08:31]} 33. Bh4 {[%clk 0:05:13]}  Kf8 {[%clk 0:08:46]} 34. Bxe7+ {[%clk 0:01:51]}  Kxe7 {[%clk 0:09:09]} 35. Kf2 {[%clk 0:01:12]}  Rxe6 {[%clk 0:08:57]} 36. Rxd5 {[%clk 0:01:34]}  Re3 {[%clk 0:09:07]} 37. Rc2 {[%clk 0:01:25]}  Ke6 {[%clk 0:07:33]} 38. Rd8 {[%clk 0:01:38]}  Ke7 {[%clk 0:05:43]} 39. Rd5 {[%clk 0:01:41]}  Ke6 {[%clk 0:05:05]} 40. Rd8 {[%clk 0:16:32]}  Ke7 {[%clk 0:20:27]} 41. Rd5 {[%clk 0:15:32]}  Ke6 {[%clk 0:17:14]} 1/2-1/2